[Event "Early-Titled-Tuesday-Blitz-February-20-2024"]
[Site "Chess.com"]
[Date "2024.02.20"]
[Round "1"]
[White "picturesquecheck"]
[Black "blitzking1729"]
[Result "1-0"]
[WhiteElo "2423"]
[BlackElo "2729"]
[TimeControl "180+1"]
[EndTime "8:07:51 PST"]
[Termination "picturesquecheck won by resignation"]

1. e4 {[%clk 0:03:00.9]} 1... c5 {[%clk 0:02:54.7]} 2. Nf3 {[%clk 0:02:54.9]}
2... d6 {[%clk 0:02:53]} 3. d4 {[%clk 0:02:54.7]} 3... cxd4 {[%clk 0:02:53.9]}
4. Nxd4 {[%clk 0:02:55.3]} 4... Nf6 {[%clk 0:02:54.2]} 5. Nc3 {[%clk 0:02:55.8]}
5... Nc6 {[%clk 0:02:54.5]} 6. Bg5 {[%clk 0:02:55.3]} 6... e6 {[%clk 0:02:54.6]}
7. Qd2 {[%clk 0:02:55.2]} 7... Be7 {[%clk 0:02:54.8]} 8. O-O-O {[%clk
0:02:54.6]} 8... h6 {[%clk 0:02:53.8]} 9. Bxf6 {[%clk 0:02:50.2]} 9... gxf6
{[%clk 0:02:49.6]} 10. Ndb5 {[%clk 0:02:46.5]} 10... a6 {[%clk 0:02:29.8]} 11.
Nxd6+ {[%clk 0:02:43.9]} 11... Bxd6 {[%clk 0:02:30.2]} 12. Qxd6 {[%clk
0:02:42.3]} 12... Qxd6 {[%clk 0:02:31.1]} 13. Rxd6 {[%clk 0:02:41.6]} 13... Ke7
{[%clk 0:02:31.4]} 14. Rd2 {[%clk 0:02:38.9]} 14... b5 {[%clk 0:02:31.7]} 15. f3
{[%clk 0:02:33.7]} 15... Bb7 {[%clk 0:02:29.8]} 16. Bd3 {[%clk 0:02:33.2]} 16...
h5 {[%clk 0:02:27]} 17. Rhd1 {[%clk 0:02:30]} 17... Rhg8 {[%clk 0:02:18.2]} 18.
Bf1 {[%clk 0:02:26.6]} 18... Rad8 {[%clk 0:02:11.7]} 19. Rxd8 {[%clk 0:02:26.4]}
19... Nxd8 {[%clk 0:02:12.6]} 20. Ne2 {[%clk 0:02:26]} 20... h4 {[%clk 0:02:10]}
21. h3 {[%clk 0:02:25]} 21... Nc6 {[%clk 0:02:09.8]} 22. Nf4 {[%clk 0:02:21.9]}
22... Ne5 {[%clk 0:02:03.9]} 23. b3 {[%clk 0:02:18.3]} 23... Rc8 {[%clk
0:01:50.6]} 24. Nd3 {[%clk 0:02:13.2]} 24... Nd7 {[%clk 0:01:45.4]} 25. Kb2
{[%clk 0:02:11.8]} 25... Rg8 {[%clk 0:01:34.8]} 26. a3 {[%clk 0:02:09]} 26...
Rc8 {[%clk 0:01:33.3]} 27. Ra1 {[%clk 0:01:54.7]} 27... Nb6 {[%clk 0:01:29.2]}
28. Nf2 {[%clk 0:01:50.8]} 28... Nd7 {[%clk 0:01:11.5]} 29. a4 {[%clk
0:01:47.9]} 29... b4 {[%clk 0:01:04.4]} 30. a5 {[%clk 0:01:44]} 30... Nc5 {[%clk
0:01:01.9]} 31. Nd3 {[%clk 0:01:42]} 31... Nxd3+ {[%clk 0:01:00.9]} 32. Bxd3
{[%clk 0:01:41.6]} 32... Rg8 {[%clk 0:01:01.6]} 33. Bf1 {[%clk 0:01:40.9]} 33...
Rb8 {[%clk 0:00:48.8]} 34. Rd1 {[%clk 0:01:33.2]} 34... e5 {[%clk 0:00:40.7]}
35. Bc4 {[%clk 0:01:24.4]} 35... Bc8 {[%clk 0:00:35.1]} 36. Rd2 {[%clk
0:01:20.3]} 36... Be6 {[%clk 0:00:26.9]} 37. Bxa6 {[%clk 0:01:13.5]} 37... Ra8
{[%clk 0:00:26.9]} 38. Bc4 {[%clk 0:01:10.1]} 38... Rxa5 {[%clk 0:00:26.3]} 39.
Bxe6 {[%clk 0:01:10]} 39... fxe6 {[%clk 0:00:26.5]} 40. c3 {[%clk 0:01:08.3]}
40... bxc3+ {[%clk 0:00:26.8]} 41. Kxc3 {[%clk 0:01:09.2]} 41... f5 {[%clk
0:00:26.8]} 42. b4 {[%clk 0:01:04]} 42... Ra1 {[%clk 0:00:26.1]} 43. Re2 {[%clk
0:01:00.3]} 43... Kd6 {[%clk 0:00:24.1]} 44. Kc4 {[%clk 0:00:56.1]} 44... Rc1+
{[%clk 0:00:20.3]} 45. Kb5 {[%clk 0:00:55.6]} 45... Rd1 {[%clk 0:00:16.2]} 46.
Kb6 {[%clk 0:00:53.5]} 46... Rd4 {[%clk 0:00:15.4]} 47. b5 {[%clk 0:00:53.1]}
47... Ra4 {[%clk 0:00:14.8]} 48. Rd2+ {[%clk 0:00:48.1]} 48... Ke7 {[%clk
0:00:14.8]} 49. exf5 {[%clk 0:00:41]} 49... exf5 {[%clk 0:00:14.9]} 50. Kb7
{[%clk 0:00:41.5]} 50... e4 {[%clk 0:00:15.1]} 51. fxe4 {[%clk 0:00:40.5]} 51...
fxe4 {[%clk 0:00:16]} 52. b6 {[%clk 0:00:41.1]} 52... Rb4 {[%clk 0:00:15.8]} 53.
Kc7 {[%clk 0:00:38.8]} 53... Rc4+ {[%clk 0:00:15.5]} 54. Kb8 {[%clk 0:00:38.7]}
54... Ke6 {[%clk 0:00:16]} 55. b7 {[%clk 0:00:38.7]} 55... Rb4 {[%clk
0:00:16.7]} 56. Ra2 {[%clk 0:00:37.2]} 56... Ke5 {[%clk 0:00:15.6]} 57. Ka8
{[%clk 0:00:36.9]} 57... e3 {[%clk 0:00:14.4]} 58. b8=Q+ {[%clk 0:00:34.8]}
58... Rxb8+ {[%clk 0:00:14.6]} 59. Kxb8 {[%clk 0:00:35]} 59... Kf4 {[%clk
0:00:15.3]} 60. Kc7 {[%clk 0:00:32.8]} 1-0

[Event "Early-Titled-Tuesday-Blitz-February-20-2024"]
[Site "Chess.com"]
[Date "2024.02.20"]
[Round "1"]
[White "falzehope0"]
[Black "Rurep26"]
[Result "0-1"]
[WhiteElo "2395"]
[BlackElo "2728"]
[TimeControl "180+1"]
[EndTime "8:07:51 PST"]
[Termination "Rurep26 won by checkmate"]

1. d4 {[%clk 0:02:54.3]} 1... Nf6 {[%clk 0:02:59.4]} 2. e3 {[%clk 0:02:53.8]}
2... e6 {[%clk 0:02:59.4]} 3. Bd3 {[%clk 0:02:52.9]} 3... b6 {[%clk 0:02:59.5]}
4. f4 {[%clk 0:02:52.5]} 4... Bb7 {[%clk 0:02:59.8]} 5. Nf3 {[%clk 0:02:52.5]}
5... g6 {[%clk 0:03:00.2]} 6. O-O {[%clk 0:02:52]} 6... Bg7 {[%clk 0:03:00.8]}
7. Nbd2 {[%clk 0:02:49.6]} 7... O-O {[%clk 0:02:58.8]} 8. Qe2 {[%clk 0:02:48.9]}
8... c5 {[%clk 0:02:58.9]} 9. c3 {[%clk 0:02:48.9]} 9... d6 {[%clk 0:02:56.3]}
10. e4 {[%clk 0:02:48.4]} 10... cxd4 {[%clk 0:02:55.4]} 11. cxd4 {[%clk
0:02:48.3]} 11... Nc6 {[%clk 0:02:55.9]} 12. a3 {[%clk 0:02:48.1]} 12... Nh5
{[%clk 0:02:48]} 13. Qe3 {[%clk 0:02:33.9]} 13... e5 {[%clk 0:02:30.3]} 14. fxe5
{[%clk 0:02:27.6]} 14... dxe5 {[%clk 0:02:31.2]} 15. d5 {[%clk 0:02:27.7]} 15...
Nd4 {[%clk 0:02:29.3]} 16. b4 {[%clk 0:02:14.8]} 16... Rc8 {[%clk 0:02:26.2]}
17. Bb2 {[%clk 0:02:13.6]} 17... Nxf3+ {[%clk 0:02:14]} 18. Nxf3 {[%clk
0:02:11.6]} 18... Qe7 {[%clk 0:02:11.6]} 19. Rac1 {[%clk 0:02:06.9]} 19... Rfe8
{[%clk 0:01:54.2]} 20. Bb5 {[%clk 0:02:00.9]} 20... Red8 {[%clk 0:01:47.2]} 21.
Bc6 {[%clk 0:01:56.2]} 21... Bxc6 {[%clk 0:01:40.4]} 22. Rxc6 {[%clk 0:01:47.9]}
22... Rxc6 {[%clk 0:01:39.8]} 23. dxc6 {[%clk 0:01:48.2]} 23... Nf4 {[%clk
0:01:40.7]} 24. Nxe5 {[%clk 0:01:13]} 24... Nxg2 {[%clk 0:01:27.7]} 25. Qg3
{[%clk 0:00:59.2]} 25... Rd2 {[%clk 0:01:15.8]} 26. Rf2 {[%clk 0:00:33.5]} 26...
Rxb2 {[%clk 0:01:08]} 27. Rxb2 {[%clk 0:00:27]} 27... Bxe5 {[%clk 0:01:07.1]}
28. Qxg2 {[%clk 0:00:25.7]} 28... Bd4+ {[%clk 0:01:07.5]} 29. Kh1 {[%clk
0:00:20.2]} 29... Bxb2 {[%clk 0:01:04.1]} 30. Qxb2 {[%clk 0:00:21.1]} 30...
Qxe4+ {[%clk 0:01:04.4]} 31. Qg2 {[%clk 0:00:20.3]} 31... Qe1+ {[%clk
0:00:50.1]} 32. Qg1 {[%clk 0:00:20]} 32... Qc3 {[%clk 0:00:51]} 33. b5 {[%clk
0:00:10.8]} 33... Qc4 {[%clk 0:00:46.8]} 34. h3 {[%clk 0:00:07.2]} 34... Qxb5
{[%clk 0:00:46]} 35. Qc1 {[%clk 0:00:07.4]} 35... Qd5+ {[%clk 0:00:45.4]} 36.
Kh2 {[%clk 0:00:07.3]} 36... Qe5+ {[%clk 0:00:45.5]} 37. Kg1 {[%clk 0:00:07.7]}
37... Qg3+ {[%clk 0:00:43.1]} 38. Kf1 {[%clk 0:00:06.1]} 38... Qxh3+ {[%clk
0:00:43.7]} 39. Kf2 {[%clk 0:00:05.6]} 39... Qh2+ {[%clk 0:00:42.9]} 40. Kf3
{[%clk 0:00:05.9]} 40... Qc7 {[%clk 0:00:41.9]} 41. Qc3 {[%clk 0:00:04.5]} 41...
h5 {[%clk 0:00:40.2]} 42. Ke4 {[%clk 0:00:04.2]} 42... Kf8 {[%clk 0:00:36.7]}
43. Kd5 {[%clk 0:00:02.9]} 43... Qd8+ {[%clk 0:00:34.3]} 44. Ke4 {[%clk
0:00:02.9]} 44... Qe7+ {[%clk 0:00:33.1]} 45. Kd5 {[%clk 0:00:03.1]} 45... Qe6+
{[%clk 0:00:33.6]} 46. Kd4 {[%clk 0:00:03]} 46... Qf6+ {[%clk 0:00:33.7]} 47.
Kc4 {[%clk 0:00:02.3]} 47... Qxc3+ {[%clk 0:00:33.9]} 48. Kxc3 {[%clk
0:00:02.8]} 48... Ke7 {[%clk 0:00:34.8]} 49. Kd4 {[%clk 0:00:03.1]} 49... Kd6
{[%clk 0:00:35.3]} 50. Ke4 {[%clk 0:00:02.4]} 50... Kxc6 {[%clk 0:00:35.6]} 51.
Kf4 {[%clk 0:00:02.9]} 51... Kb5 {[%clk 0:00:36.1]} 52. Kg5 {[%clk 0:00:03.3]}
52... Ka4 {[%clk 0:00:37]} 53. Kf6 {[%clk 0:00:03.9]} 53... h4 {[%clk 0:00:37]}
54. Kxf7 {[%clk 0:00:04.3]} 54... h3 {[%clk 0:00:37.9]} 55. Kxg6 {[%clk
0:00:04.7]} 55... h2 {[%clk 0:00:38.8]} 56. Kf5 {[%clk 0:00:05.4]} 56... h1=Q
{[%clk 0:00:39.7]} 57. Ke5 {[%clk 0:00:05.2]} 57... Kxa3 {[%clk 0:00:40]} 58.
Kd6 {[%clk 0:00:05.8]} 58... b5 {[%clk 0:00:40.5]} 59. Kc7 {[%clk 0:00:06.2]}
59... b4 {[%clk 0:00:41.4]} 60. Kb8 {[%clk 0:00:06.2]} 60... b3 {[%clk
0:00:42.3]} 61. Kxa7 {[%clk 0:00:06.7]} 61... b2 {[%clk 0:00:41.8]} 62. Ka6
{[%clk 0:00:06.4]} 62... b1=Q {[%clk 0:00:41]} 63. Ka7 {[%clk 0:00:06.7]} 63...
Qbb7# {[%clk 0:00:41.2]} 0-1

[Event "Early-Titled-Tuesday-Blitz-February-20-2024"]
[Site "Chess.com"]
[Date "2024.02.20"]
[Round "1"]
[White "aistrel"]
[Black "Oleksandr_Bortnyk"]
[Result "0-1"]
[WhiteElo "2533"]
[BlackElo "3066"]
[TimeControl "180+1"]
[EndTime "8:07:53 PST"]
[Termination "Oleksandr_Bortnyk won by resignation"]

1. d4 {[%clk 0:03:00.9]} 1... Nf6 {[%clk 0:02:54.4]} 2. Nc3 {[%clk 0:03:00.3]}
2... d5 {[%clk 0:02:39.4]} 3. Bf4 {[%clk 0:03:00.6]} 3... a6 {[%clk 0:02:31.6]}
4. e3 {[%clk 0:03:00.1]} 4... e6 {[%clk 0:02:30.3]} 5. g4 {[%clk 0:02:58.8]}
5... c5 {[%clk 0:02:26.7]} 6. g5 {[%clk 0:02:59]} 6... Nfd7 {[%clk 0:02:25.3]}
7. h4 {[%clk 0:02:58.3]} 7... Nc6 {[%clk 0:02:23]} 8. Nf3 {[%clk 0:02:53.3]}
8... b5 {[%clk 0:02:20]} 9. a3 {[%clk 0:02:52.7]} 9... Bb7 {[%clk 0:02:19.7]}
10. h5 {[%clk 0:02:52.5]} 10... Qb6 {[%clk 0:02:16.3]} 11. Bg2 {[%clk
0:02:42.5]} 11... Be7 {[%clk 0:02:03.7]} 12. g6 {[%clk 0:02:29.7]} 12... hxg6
{[%clk 0:02:02.8]} 13. hxg6 {[%clk 0:02:30.6]} 13... Rxh1+ {[%clk 0:02:02.8]}
14. Bxh1 {[%clk 0:02:31.5]} 14... f5 {[%clk 0:01:55.8]} 15. Ng5 {[%clk
0:01:54.2]} 15... Nf8 {[%clk 0:01:28.7]} 16. Bxd5 {[%clk 0:01:40.9]} 16... exd5
{[%clk 0:01:15.7]} 17. Nxd5 {[%clk 0:01:41.2]} 17... Qa5+ {[%clk 0:01:13.7]} 18.
b4 {[%clk 0:01:33.3]} 18... cxb4 {[%clk 0:01:12.5]} 19. Bc7 {[%clk 0:01:33.7]}
19... Qa4 {[%clk 0:00:55.9]} 20. axb4 {[%clk 0:01:33]} 20... Bxg5 {[%clk
0:00:54.6]} 21. Rxa4 {[%clk 0:01:26.9]} 21... bxa4 {[%clk 0:00:55.5]} 22. Nb6
{[%clk 0:01:06.7]} 22... Rd8 {[%clk 0:00:49.6]} 23. Bxd8 {[%clk 0:01:05.2]}
23... Bxd8 {[%clk 0:00:50.5]} 24. Nxa4 {[%clk 0:01:01.4]} 24... Nxg6 {[%clk
0:00:51]} 25. Nc5 {[%clk 0:01:01.6]} 25... Bc8 {[%clk 0:00:51.4]} 26. c4 {[%clk
0:00:54.3]} 26... Kf7 {[%clk 0:00:38.3]} 27. Qa4 {[%clk 0:00:49.7]} 27... Nge7
{[%clk 0:00:38.5]} 28. f4 {[%clk 0:00:42.7]} 28... Nb8 {[%clk 0:00:22.1]} 29.
Nd3 {[%clk 0:00:34.3]} 29... Nd7 {[%clk 0:00:20.7]} 30. d5 {[%clk 0:00:29.9]}
30... Bc7 {[%clk 0:00:19.9]} 31. Qb3 {[%clk 0:00:25.3]} 31... Bb7 {[%clk
0:00:19]} 32. Nc5 {[%clk 0:00:25.3]} 32... Bc8 {[%clk 0:00:18.3]} 33. Qa4 {[%clk
0:00:21.7]} 33... Nb6 {[%clk 0:00:16.7]} 34. Qc2 {[%clk 0:00:21.4]} 34... Bd6
{[%clk 0:00:15.4]} 35. Ke2 {[%clk 0:00:15.7]} 35... a5 {[%clk 0:00:12.7]} 36.
Nd3 {[%clk 0:00:11.6]} 36... Bxb4 {[%clk 0:00:12.7]} 37. Nxb4 {[%clk 0:00:11.6]}
37... axb4 {[%clk 0:00:13.6]} 38. Qb3 {[%clk 0:00:12.2]} 38... Ba6 {[%clk
0:00:12.6]} 39. Qxb4 {[%clk 0:00:12.3]} 39... Bxc4+ {[%clk 0:00:13.1]} 40. Kf2
{[%clk 0:00:11.3]} 40... Nexd5 {[%clk 0:00:13.6]} 41. Qc5 {[%clk 0:00:10.9]}
41... Ba6 {[%clk 0:00:07.6]} 42. Qd4 {[%clk 0:00:11.1]} 42... Bc8 {[%clk
0:00:07.8]} 43. Qe5 {[%clk 0:00:11.4]} 43... Bd7 {[%clk 0:00:06.9]} 44. Qd6
{[%clk 0:00:11.8]} 44... Be6 {[%clk 0:00:07.3]} 45. Qe5 {[%clk 0:00:12.3]} 45...
Nd7 {[%clk 0:00:07.3]} 46. Qd6 {[%clk 0:00:12]} 46... N7f6 {[%clk 0:00:08]} 47.
Qb8 {[%clk 0:00:11.7]} 47... Ng4+ {[%clk 0:00:07.5]} 48. Kf3 {[%clk 0:00:12.4]}
48... Ngxe3 {[%clk 0:00:08.4]} 49. Qb7+ {[%clk 0:00:12.4]} 49... Kg6 {[%clk
0:00:08.2]} 50. Qb2 {[%clk 0:00:12.5]} 50... Ng4 {[%clk 0:00:07.9]} 51. Qb5
{[%clk 0:00:10.9]} 51... Ndf6 {[%clk 0:00:07.8]} 52. Qc6 {[%clk 0:00:10.9]}
52... Bd5+ {[%clk 0:00:08.4]} 53. Qxd5 {[%clk 0:00:11.3]} 53... Nxd5 {[%clk
0:00:09.3]} 54. Kg3 {[%clk 0:00:11.9]} 54... Kh5 {[%clk 0:00:09]} 0-1

[Event "Early-Titled-Tuesday-Blitz-February-20-2024"]
[Site "Chess.com"]
[Date "2024.02.20"]
[Round "1"]
[White "invisible_s0ul"]
[Black "Predator0608"]
[Result "0-1"]
[WhiteElo "2201"]
[BlackElo "2591"]
[TimeControl "180+1"]
[EndTime "8:07:54 PST"]
[Termination "Predator0608 won by resignation"]

1. e4 {[%clk 0:02:59.3]} 1... e6 {[%clk 0:02:57.2]} 2. d4 {[%clk 0:02:57.2]}
2... d5 {[%clk 0:02:58.1]} 3. Nc3 {[%clk 0:02:55.2]} 3... Nf6 {[%clk 0:02:57.7]}
4. exd5 {[%clk 0:02:50.9]} 4... exd5 {[%clk 0:02:56.4]} 5. Bd3 {[%clk
0:02:50.2]} 5... Bd6 {[%clk 0:02:52.7]} 6. Nge2 {[%clk 0:02:49.6]} 6... c6
{[%clk 0:02:52.3]} 7. Bg5 {[%clk 0:02:48]} 7... h6 {[%clk 0:02:51.2]} 8. Bh4
{[%clk 0:02:46]} 8... Be6 {[%clk 0:02:48.1]} 9. O-O {[%clk 0:02:42.5]} 9... Nbd7
{[%clk 0:02:47.3]} 10. h3 {[%clk 0:02:35.3]} 10... Qc7 {[%clk 0:02:45.7]} 11.
Re1 {[%clk 0:02:32.7]} 11... O-O-O {[%clk 0:02:37]} 12. Bg3 {[%clk 0:02:31.1]}
12... h5 {[%clk 0:02:32.5]} 13. b4 {[%clk 0:02:26]} 13... g5 {[%clk 0:02:25.1]}
14. b5 {[%clk 0:02:22.4]} 14... h4 {[%clk 0:02:15.6]} 15. Bxd6 {[%clk
0:02:17.6]} 15... Qxd6 {[%clk 0:02:16.5]} 16. bxc6 {[%clk 0:02:16.1]} 16... bxc6
{[%clk 0:02:16.7]} 17. Ba6+ {[%clk 0:02:10.8]} 17... Kc7 {[%clk 0:02:16.7]} 18.
Rb1 {[%clk 0:02:06.7]} 18... Rb8 {[%clk 0:02:13.3]} 19. Qd2 {[%clk 0:01:55.7]}
19... g4 {[%clk 0:02:13]} 20. Qf4 {[%clk 0:01:30.5]} 20... gxh3 {[%clk
0:02:06.5]} 21. Qxd6+ {[%clk 0:01:09.2]} 21... Kxd6 {[%clk 0:02:07.4]} 22. gxh3
{[%clk 0:01:09.8]} 22... Bxh3 {[%clk 0:02:03.9]} 23. Nf4 {[%clk 0:01:01.8]}
23... Bf5 {[%clk 0:02:03.9]} 24. Bd3 {[%clk 0:00:45.7]} 24... Bxd3 {[%clk
0:02:01.3]} 25. Nxd3 {[%clk 0:00:46.6]} 25... Rxb1 {[%clk 0:01:23]} 26. Rxb1
{[%clk 0:00:47.5]} 26... Ne4 {[%clk 0:01:23.5]} 27. Nxe4+ {[%clk 0:00:28.7]}
27... dxe4 {[%clk 0:01:24.4]} 28. Nf4 {[%clk 0:00:29]} 28... Nb6 {[%clk
0:01:06.8]} 29. Kh2 {[%clk 0:00:17.2]} 29... f5 {[%clk 0:00:35.7]} 30. Kh3
{[%clk 0:00:17.1]} 30... Rh7 {[%clk 0:00:34.2]} 31. Rc1 {[%clk 0:00:14.5]} 31...
Nd5 {[%clk 0:00:33.6]} 32. Ng6 {[%clk 0:00:08.8]} 32... Rh6 {[%clk 0:00:29.4]}
33. Nf8 {[%clk 0:00:04.5]} 33... Ke7 {[%clk 0:00:27.6]} 34. c4 {[%clk
0:00:03.2]} 34... Nf4+ {[%clk 0:00:27]} 35. Kh2 {[%clk 0:00:04.1]} 35... Kxf8
{[%clk 0:00:27.9]} 36. d5 {[%clk 0:00:04.5]} 36... cxd5 {[%clk 0:00:27.7]} 37.
cxd5 {[%clk 0:00:05.4]} 37... Nxd5 {[%clk 0:00:28.6]} 38. Rc8+ {[%clk
0:00:06.2]} 38... Ke7 {[%clk 0:00:27.5]} 39. Ra8 {[%clk 0:00:07.1]} 39... Ra6
{[%clk 0:00:26]} 40. Rh8 {[%clk 0:00:04]} 40... Rxa2 {[%clk 0:00:26.2]} 41. Rh7+
{[%clk 0:00:03.5]} 41... Ke6 {[%clk 0:00:25.7]} 42. Rxh4 {[%clk 0:00:04.4]}
42... Rxf2+ {[%clk 0:00:25.2]} 43. Kg3 {[%clk 0:00:05.3]} 43... Rf3+ {[%clk
0:00:25.4]} 44. Kg2 {[%clk 0:00:06.2]} 44... Ne3+ {[%clk 0:00:25.9]} 45. Kg1
{[%clk 0:00:06.4]} 45... Ke5 {[%clk 0:00:25.4]} 46. Rh7 {[%clk 0:00:06.1]} 46...
Kf4 {[%clk 0:00:20.8]} 47. Rxa7 {[%clk 0:00:05.4]} 47... Rf1+ {[%clk 0:00:21.1]}
48. Kh2 {[%clk 0:00:05.2]} 48... Ng4+ {[%clk 0:00:21]} 49. Kh3 {[%clk
0:00:05.1]} 49... Rf2 {[%clk 0:00:21.9]} 50. Ra2 {[%clk 0:00:02.2]} 50... Rxa2
{[%clk 0:00:21]} 0-1

[Event "Early-Titled-Tuesday-Blitz-February-20-2024"]
[Site "Chess.com"]
[Date "2024.02.20"]
[Round "1"]
[White "KanalSzachowy"]
[Black "Andrey_Klymchuk"]
[Result "0-1"]
[WhiteElo "2399"]
[BlackElo "2735"]
[TimeControl "180+1"]
[EndTime "8:07:55 PST"]
[Termination "Andrey_Klymchuk won by checkmate"]

1. e4 {[%clk 0:03:00.9]} 1... c5 {[%clk 0:02:59.4]} 2. Nc3 {[%clk 0:03:00.7]}
2... Nc6 {[%clk 0:02:58.4]} 3. Bb5 {[%clk 0:03:00.9]} 3... g6 {[%clk 0:02:58.2]}
4. Bxc6 {[%clk 0:03:00]} 4... bxc6 {[%clk 0:02:57.6]} 5. f4 {[%clk 0:03:00.6]}
5... Bg7 {[%clk 0:02:57.5]} 6. Nf3 {[%clk 0:03:00.9]} 6... d6 {[%clk 0:02:57.5]}
7. d3 {[%clk 0:03:01.5]} 7... Nh6 {[%clk 0:02:56.3]} 8. O-O {[%clk 0:03:00.9]}
8... f5 {[%clk 0:02:55.8]} 9. Ng5 {[%clk 0:02:54.5]} 9... O-O {[%clk 0:02:53.4]}
10. Qe1 {[%clk 0:02:45.7]} 10... e5 {[%clk 0:02:47.6]} 11. fxe5 {[%clk
0:02:30.6]} 11... Bxe5 {[%clk 0:02:33.4]} 12. Qh4 {[%clk 0:02:28]} 12... Bg7
{[%clk 0:02:33.4]} 13. Kh1 {[%clk 0:02:12.4]} 13... Rb8 {[%clk 0:02:28.6]} 14.
Qg3 {[%clk 0:01:42.7]} 14... Ng4 {[%clk 0:02:12.2]} 15. h3 {[%clk 0:01:29.3]}
15... Ne5 {[%clk 0:02:10.3]} 16. Nf3 {[%clk 0:01:22.6]} 16... Be6 {[%clk
0:01:20.1]} 17. Bg5 {[%clk 0:01:19.8]} 17... Qd7 {[%clk 0:01:16.8]} 18. Rab1
{[%clk 0:01:12.8]} 18... Nxf3 {[%clk 0:01:09.3]} 19. Qxf3 {[%clk 0:01:06.1]}
19... fxe4 {[%clk 0:01:06.4]} 20. Qxe4 {[%clk 0:01:02.9]} 20... Bxh3 {[%clk
0:00:57.7]} 21. Qc4+ {[%clk 0:00:45.8]} 21... Be6 {[%clk 0:00:57]} 22. Qh4
{[%clk 0:00:45.6]} 22... d5 {[%clk 0:00:47.6]} 23. Ne2 {[%clk 0:00:40.9]} 23...
h5 {[%clk 0:00:40.8]} 24. Nf4 {[%clk 0:00:37.8]} 24... Bf5 {[%clk 0:00:40]} 25.
Rbe1 {[%clk 0:00:33]} 25... Rbe8 {[%clk 0:00:37.7]} 26. Be7 {[%clk 0:00:28]}
26... Rf7 {[%clk 0:00:31.2]} 27. Bxc5 {[%clk 0:00:28.6]} 27... Bxb2 {[%clk
0:00:26.9]} 28. Rxe8+ {[%clk 0:00:22.7]} 28... Qxe8 {[%clk 0:00:27.8]} 29. Re1
{[%clk 0:00:23.4]} 29... Qd7 {[%clk 0:00:27.2]} 30. Re7 {[%clk 0:00:22.6]} 30...
Rxe7 {[%clk 0:00:26.8]} 31. Bxe7 {[%clk 0:00:22.7]} 31... Be5 {[%clk 0:00:21.7]}
32. Bc5 {[%clk 0:00:18.5]} 32... Qf7 {[%clk 0:00:20]} 33. Qd8+ {[%clk
0:00:17.5]} 33... Kh7 {[%clk 0:00:20.1]} 34. Bd6 {[%clk 0:00:13.6]} 34... Bf6
{[%clk 0:00:19.4]} 35. Qb8 {[%clk 0:00:12.2]} 35... Bg4 {[%clk 0:00:19.5]} 36.
Be5 {[%clk 0:00:08.1]} 36... g5 {[%clk 0:00:19.6]} 37. Bxf6 {[%clk 0:00:08.3]}
37... Qxf6 {[%clk 0:00:20]} 38. Qb7+ {[%clk 0:00:08.9]} 38... Kh6 {[%clk
0:00:20.3]} 39. Nh3 {[%clk 0:00:04.2]} 39... Bxh3 {[%clk 0:00:20.4]} 40. gxh3
{[%clk 0:00:04.7]} 40... g4 {[%clk 0:00:20.9]} 41. Kh2 {[%clk 0:00:05.6]} 41...
Qf2+ {[%clk 0:00:20.6]} 42. Kh1 {[%clk 0:00:04.5]} 42... g3 {[%clk 0:00:20]} 43.
Qxc6+ {[%clk 0:00:04.3]} 43... Kg7 {[%clk 0:00:19.3]} 44. Qd7+ {[%clk
0:00:04.6]} 44... Kg6 {[%clk 0:00:19.8]} 45. Qe6+ {[%clk 0:00:04.5]} 45... Kg5
{[%clk 0:00:19.9]} 46. Qe5+ {[%clk 0:00:04.6]} 46... Kh4 {[%clk 0:00:20.1]} 47.
Qe7+ {[%clk 0:00:03.7]} 47... Kxh3 {[%clk 0:00:20.3]} 48. Qe6+ {[%clk
0:00:04.4]} 48... Kh4 {[%clk 0:00:20.7]} 49. Qe7+ {[%clk 0:00:04.8]} 49... Kg4
{[%clk 0:00:21.1]} 50. Qg7+ {[%clk 0:00:04.6]} 50... Kf3 {[%clk 0:00:21.5]} 51.
Qf7+ {[%clk 0:00:04.8]} 51... Ke2 {[%clk 0:00:21.8]} 52. Qe7+ {[%clk 0:00:05]}
52... Kd1 {[%clk 0:00:21.9]} 53. Qf6 {[%clk 0:00:02.7]} 53... Qh2# {[%clk
0:00:21.5]} 0-1